bitfinex-derivatives/quotes_BNBF0:USTF0_20250511
["timestamp","ask_amount","ask_price","bid_price","bid_amount"]
[1746972634653,0.2458731,652.48,650.49,1.17531945]
[1746972635157,0.2458731,652.48,650.5,0.28193813]
[1746972635758,0.2458731,652.48,650.51,1.17531945]
[1746972636159,0.2458731,652.48,650.52,0.28193813]
[1746972636352,0.2458731,652.48,650.53,1.17531945]
[1746972636857,0.2458731,652.48,650.54,0.28193813]
[1746972637353,0.2458731,652.48,650.55,1.17531945]
[1746972638157,0.2458731,652.48,650.56,0.28193813]
[1746972638563,0.2458731,652.48,650.57,1.17531945]
[1746972638762,0.2458731,652.48,650.58,0.28193813]
[1746972639461,0.2458731,652.48,649.34,0.28193813]
[1746972639662,0.2458731,652.48,649.35,0.28193813]
[1746972639862,0.2458731,652.48,649.36,1.18192416]
[1746972640062,0.2458731,652.48,649.36,1.73101618]
[1746972640262,0.2458731,652.48,649.37,1.18192416]
[1746972640464,0.2458731,652.48,649.37,1.46386229]
[1746972640662,1.95105089,652.35,649.38,0.28193813]
[1746972640861,1.95105089,652.35,649.39,1.18192416]
[1746972641062,0.2458731,652.34,649.39,1.18192416]
[1746972641258,0.2458731,652.34,649.39,1.46386229]
[1746972641462,0.2458731,652.34,649.4,1.46386229]
[1746972641859,0.2458731,652.34,649.41,0.28193813]
[1746972642056,0.2458731,652.34,649.41,1.46386229]
[1746972642261,0.2458731,652.34,649.42,1.46386229]
[1746972642559,0.2458731,652.34,649.43,0.91140312]
[1746972642865,0.2458731,652.34,649.44,1.18192416]
[1746972643162,0.26717543,652.33,649.45,1.18192416]
[1746972643364,0.26717543,652.33,649.45,2.09332728]
[1746972643563,0.2458731,652.32,649.46,0.91140312]
[1746972643865,0.2458731,652.32,649.47,0.91140312]
[1746972644162,0.2458731,652.32,649.48,2.09332728]
[1746972644363,0.2458731,652.32,649.49,1.18192416]
[1746972644663,0.2458731,652.32,649.5,1.18192416]
[1746972644865,1.95105089,652.09,649.5,2.09332728]
[1746972645165,1.95105089,652.09,649.51,1.18192416]
[1746972645565,1.95105089,652.09,649.52,0.28210865]
[1746972645766,1.95105089,652.09,649.52,1.46403281]
[1746972645968,1.95105089,652.09,649.53,1.46403281]
[1746972646162,0.26718363,652.08,649.53,1.46403281]
[1746972646365,0.26718363,652.08,649.54,0.28210865]
[1746972646767,0.26718363,652.08,649.55,1.18192416]
[1746972646960,0.26718363,652.08,649.56,1.18192416]
[1746972647260,0.26718363,652.08,649.57,0.28210865]
[1746972647668,0.26718363,652.08,649.58,1.46403281]
[1746972648167,0.26718363,652.08,649.59,1.46403281]
[1746972648566,0.30676728,651.96,649.6,1.18192416]
[1746972648766,0.30676728,651.96,649.6,1.46403281]
[1746972648967,0.30676728,651.96,649.61,1.46403281]
[1746972649262,0.30676728,651.96,649.62,0.28210865]
[1746972649569,0.30676728,651.96,649.63,1.46403281]
[1746972649867,0.30676728,651.96,649.64,0.28210865]
[1746972650164,0.30676728,651.96,649.65,1.46403281]
[1746972650468,0.30676728,651.96,649.66,1.18192416]
[1746972650668,0.30676728,651.96,649.66,1.46403281]
[1746972650966,0.30676728,651.96,649.67,1.18192416]
[1746972651268,0.30676728,651.96,649.68,1.18192416]
[1746972651464,0.30676728,651.96,649.68,1.46403281]
[1746972651666,0.30676728,651.96,649.69,1.18192416]
[1746972651968,0.30676728,651.96,649.69,1.46403281]
[1746972652163,0.2671703,651.95,649.7,1.18192416]
[1746972652569,0.51289804,651.95,649.71,1.18192416]
[1746972652868,0.2671703,651.95,649.72,1.18192416]
[1746972653070,0.24571013,651.94,649.72,1.4640541]
[1746972653568,0.24571013,651.94,649.73,1.4640541]
[1746972653869,0.24571013,651.94,649.74,0.28212994]
[1746972654068,0.24571013,651.94,649.75,1.18192416]
[1746972654263,0.24571013,651.94,649.75,1.4640541]
[1746972654466,0.24571013,651.94,649.76,1.18192416]
[1746972654667,0.24571013,651.94,649.76,1.4640541]
[1746972654863,0.24571013,651.94,649.77,1.18192416]
[1746972655063,0.24571013,651.94,649.77,1.4640541]
[1746972655368,0.26720209,651.93,649.78,1.18192416]
[1746972655570,0.26720209,651.93,649.78,1.4640541]
[1746972655872,0.26720209,651.93,649.78,1.18192416]
[1746972656067,0.26720209,651.93,649.79,1.18192416]
[1746972656265,0.24566613,651.92,649.8,1.18192416]
[1746972656565,0.24566613,651.92,649.81,0.28215549]
[1746972656765,0.24566613,651.92,649.82,1.46407965]
[1746972657070,0.24566613,651.92,649.83,1.18192416]
[1746972657370,0.24566613,651.92,649.83,1.46407965]
[1746972657564,0.24566613,651.92,649.84,0.28215549]
[1746972657767,0.24566613,651.92,649.85,1.18192416]
[1746972657965,0.24566613,651.92,649.85,1.46407965]
[1746972658167,0.26717645,651.91,649.85,1.46407965]
[1746972658369,0.26717645,651.91,649.86,1.46407965]
[1746972658772,0.24566613,651.9,649.87,1.46407965]
[1746972659169,0.24566613,651.9,649.88,1.18192416]
[1746972659371,0.24566613,651.9,649.88,1.46407965]
[1746972659563,0.24566613,651.9,649.89,1.18192416]
[1746972659765,0.30684258,651.8,649.89,1.46407965]
[1746972659972,0.30684258,651.8,649.9,0.28215549]
[1746972660271,0.30684258,651.8,649.91,0.28215549]
[1746972660569,0.30684258,651.8,649.92,1.46407965]
[1746972660871,0.30684258,651.8,649.93,1.18192416]
[1746972661170,0.30684258,651.8,649.94,0.28215549]
[1746972661472,0.30684258,651.8,649.95,1.46407965]
[1746972661774,0.30684258,651.8,649.96,1.18192416]
[1746972661972,0.30684258,651.8,649.96,1.46407965]
[1746972662170,0.30684258,651.8,649.97,1.46407965]
[1746972662577,0.30684258,651.8,649.98,1.46407965]
[1746972662972,0.30684258,651.8,649.99,0.28215549]
[1746972663174,0.30684258,651.8,650.0,1.18192416]
[1746972663374,0.30684258,651.8,650.0,1.46407965]
[1746972663880,0.30684258,651.8,650.01,1.46407965]
[1746972664078,0.30684258,651.8,650.02,1.18192416]
[1746972664279,0.30684258,651.8,650.02,1.46407965]
[1746972664482,0.30684258,651.8,650.03,0.28215549]
[1746972664976,0.30684258,651.8,650.04,1.18192416]
[1746972665383,0.30684258,651.8,650.05,1.18192416]
[1746972665575,0.30684258,651.8,650.05,1.46407965]
[1746972665883,0.30684258,651.8,650.06,1.46407965]
[1746972666182,0.30684258,651.8,650.07,1.18192416]
[1746972666481,0.30684258,651.8,650.08,1.18192416]
[1746972666784,0.30684258,651.8,650.09,1.46407965]
[1746972667175,0.2671703,651.79,650.1,0.28215549]
[1746972667375,0.2671703,651.79,650.11,1.18192416]
[1746972667879,0.2671703,651.79,650.12,1.46407965]
[1746972668081,0.2671703,651.79,650.13,0.28215549]
[1746972668278,0.2671703,651.79,650.13,1.46407965]
[1746972668782,0.2671703,651.79,650.14,1.18192416]
[1746972668984,0.2671703,651.79,650.14,1.46407965]
[1746972669180,0.2671703,651.79,650.15,1.18192416]
[1746972669377,0.2671703,651.79,650.15,1.46407965]
[1746972669777,0.2671703,651.79,650.16,0.28215549]
[1746972669981,0.30684258,651.8,650.17,1.18192416]
[1746972670178,0.26715184,651.78,650.17,1.18192416]
[1746972670384,0.26715184,651.78,650.18,0.28215549]
[1746972670586,0.26715184,651.78,650.18,1.46407965]
[1746972670987,0.26715184,651.78,650.19,1.18192416]
[1746972671187,0.26715184,651.78,650.19,1.46407965]
[1746972671387,0.26715184,651.78,650.2,1.46407965]
[1746972671788,0.26715184,651.78,650.21,0.28215549]
[1746972672391,0.26715184,651.78,648.79,0.91205891]
[1746972672689,0.26715184,651.78,648.8,0.91205891]
[1746972672892,0.30684258,651.8,648.8,2.08628595]
[1746972673091,0.26730677,651.77,648.81,1.17936568]
[1746972673292,0.26730677,651.77,648.82,2.08628595]
[1746972673687,0.26730677,651.77,648.83,0.91205891]
[1746972673992,0.26730677,651.77,648.84,2.08628595]
[1746972674390,0.26730677,651.77,648.85,0.91205891]
[1746972674591,0.26730677,651.77,648.86,1.17422704]
[1746972674891,0.26730677,651.77,648.87,1.17422704]
[1746972675192,0.26730677,651.77,648.87,2.08628595]
[1746972675491,0.26730677,651.77,648.91,0.97353024]
[1746972675686,0.26730677,651.77,648.92,1.17422704]
[1746972675889,0.30684258,651.8,648.92,1.17422704]
[1746972676189,0.26731806,651.76,648.93,2.08628595]
[1746972676391,0.26731806,651.76,648.94,0.91205891]
[1746972676691,0.26731806,651.76,648.95,1.17422704]
[1746972676893,0.30692735,651.62,648.95,1.45638253]
[1746972677085,0.30692735,651.62,648.96,1.17422704]
[1746972677289,0.30692735,651.62,648.96,2.08628595]
[1746972677493,0.30692735,651.62,648.97,0.91205891]
[1746972677693,0.30692735,651.62,648.98,1.17422704]
[1746972677889,0.30692735,651.62,648.99,1.17422704]
[1746972678090,0.30692735,651.62,649.0,0.91205891]
[1746972678386,0.30692735,651.62,649.01,0.91205891]
[1746972678586,0.30692735,651.62,649.01,2.08628595]
[1746972678787,0.30692735,651.62,649.02,0.91205891]
[1746972678992,0.30692735,651.62,649.02,2.08628595]
[1746972679192,0.26729548,651.61,649.03,2.08628595]
[1746972679392,0.26729548,651.61,649.04,0.91205891]
[1746972679593,0.26729548,651.61,649.05,1.17422704]
[1746972679793,0.26729548,651.61,649.05,2.08628595]
[1746972679995,0.26729548,651.61,649.06,0.91205891]
[1746972680295,0.26729548,651.61,649.07,1.17422704]
[1746972680496,0.30698859,651.49,649.07,2.08628595]
[1746972680698,0.30698859,651.49,649.08,1.17422704]
[1746972680895,0.30698859,651.49,649.08,1.45638253]
[1746972681099,0.30698859,651.49,649.09,0.28215549]
[1746972681298,0.30698859,651.49,649.1,1.17422704]
[1746972681495,0.30698859,651.49,649.1,1.45638253]
[1746972681701,0.30698859,651.49,649.11,0.28215549]
[1746972682203,0.30698859,651.49,649.12,1.45638253]
[1746972682395,0.26728624,651.48,649.12,1.45638253]
[1746972682701,0.26728624,651.48,649.13,1.17422704]
[1746972683000,0.26728624,651.48,649.14,1.17422704]
[1746972683201,0.26728624,651.48,649.14,1.45638253]
[1746972683501,0.26728624,651.48,649.15,1.45638253]
[1746972683800,0.26728624,651.48,649.16,0.28215549]
[1746972684000,0.26728624,651.48,649.17,1.45638253]
[1746972684401,0.26728624,651.48,649.18,1.45638253]
[1746972684803,0.30698859,651.49,649.19,1.45638253]
[1746972684997,0.30698859,651.49,649.2,0.28215549]
[1746972685401,0.26726674,651.48,649.21,1.17422704]
[1746972685600,0.26726674,651.48,649.22,1.17422704]
[1746972685798,0.26726674,651.48,649.23,0.28215549]
[1746972686103,0.30704515,651.37,649.24,1.17422704]
[1746972686402,0.30704515,651.37,649.25,1.17422704]
[1746972686802,0.30704515,651.37,649.26,0.28215549]
[1746972687102,0.30704515,651.37,649.27,1.17422704]
[1746972687304,0.30704515,651.37,649.27,1.45638253]
[1746972687505,0.30704515,651.37,649.28,1.17422704]
[1746972687702,0.30704515,651.37,649.28,1.45638253]
[1746972688000,0.30704515,651.37,649.29,1.45638253]
[1746972688304,0.30704515,651.37,649.29,1.17422704]
[1746972688604,0.30704515,651.37,649.3,1.17422704]
[1746972688798,0.30704515,651.37,649.3,1.45640465]
[1746972688999,0.30704515,651.37,649.31,1.17422704]
[1746972689199,0.30704515,651.37,649.32,1.17857992]
[1746972689403,0.30704515,651.37,649.33,1.46075753]
[1746972689704,0.30704515,651.37,649.34,1.46109148]
[1746972689905,0.30704515,651.37,649.35,0.28217761]
[1746972690106,0.30704515,651.37,649.36,1.17891387]
[1746972690306,0.30704515,651.37,649.37,0.28217761]
[1746972690600,0.30704515,651.37,649.38,1.17891387]
[1746972690804,0.30704515,651.37,649.38,1.46109148]
[1746972691001,0.30704515,651.37,649.39,1.17891387]
[1746972691208,0.30704515,651.37,649.39,1.46109148]
[1746972691506,0.30704515,651.37,649.4,1.46109148]
[1746972691802,0.30704515,651.37,649.41,0.28217761]
[1746972692006,0.30704515,651.37,649.42,1.17891387]
[1746972692199,0.30704515,651.37,649.42,1.46109148]
[1746972692404,0.30704515,651.37,649.43,1.17891387]
[1746972692605,0.30704515,651.37,649.43,1.46109148]
[1746972692900,0.30704515,651.37,649.44,1.46109148]
[1746972693205,0.30704515,651.37,649.45,1.46109148]
[1746972693506,0.30704515,651.37,649.46,0.28217761]
[1746972693903,0.30704515,651.37,649.47,0.28217761]
[1746972694102,0.30704515,651.37,649.48,1.46109148]
[1746972694507,0.30704515,651.37,649.49,0.28217761]
[1746972694707,0.30704515,651.37,649.49,1.46109148]
[1746972695002,0.30704515,651.37,649.5,1.46109148]
[1746972695207,0.30704515,651.37,649.51,0.28217761]
[1746972695506,0.30704515,651.37,649.52,0.28217761]
[1746972695703,0.30704515,651.37,649.53,1.17891387]
[1746972695904,0.30704515,651.37,649.53,1.46109148]
[1746972696100,0.30704515,651.37,649.54,0.28217761]
[1746972696408,0.30704515,651.37,649.55,1.46109148]
[1746972696803,0.30704515,651.37,649.56,0.28217761]
[1746972697000,0.30704515,651.37,649.57,1.17891387]
[1746972697202,0.26724313,651.36,649.57,1.17891387]
[1746972697404,0.26724313,651.36,649.57,1.46109148]
[1746972697607,0.26724313,651.36,649.58,0.28217761]
[1746972697806,0.26724313,651.36,649.59,1.17891387]
[1746972698005,0.26724313,651.36,649.59,1.46109148]
[1746972698306,0.26724313,651.36,649.6,1.46109148]
[1746972698502,0.30705929,651.34,649.6,1.46109148]
[1746972698707,0.30705929,651.34,649.61,0.28217761]
[1746972699007,0.30705929,651.34,649.62,0.28217761]
[1746972699307,0.30705929,651.34,649.63,1.17891387]
[1746972699502,0.30705929,651.34,649.63,1.46109148]
[1746972699701,0.30705929,651.34,649.64,0.28217761]
[1746972700102,0.30705929,651.34,649.65,1.17891387]
[1746972700302,0.26728316,651.33,649.65,1.46109148]
[1746972700508,0.30707343,651.31,649.66,0.28217761]
[1746972700707,0.30707343,651.31,649.67,1.17891387]
[1746972700909,0.30707343,651.31,649.67,1.46109148]
[1746972701306,0.30707343,651.31,649.68,0.28217761]
[1746972701502,0.30707343,651.31,649.68,1.46109148]
[1746972701704,0.30707343,651.31,649.69,1.46109148]
[1746972701903,0.30707343,651.31,649.7,1.17891387]
[1746972702204,0.30707343,651.31,649.7,1.46109148]
[1746972702408,0.30707343,651.31,649.71,1.17891387]
[1746972702607,0.30707343,651.31,649.71,1.46109148]
[1746972702806,0.30707343,651.31,649.71,1.17891387]
[1746972703002,0.30707343,651.31,649.49,1.17891387]
[1746972703207,0.30707343,651.31,649.72,0.28212501]
[1746972703407,0.30707343,651.31,649.73,1.17891387]
[1746972703610,0.30707343,651.31,649.73,1.46103888]
[1746972703905,0.30707343,651.31,649.74,1.17891387]
[1746972704109,0.30707343,651.31,649.74,1.46103888]
[1746972704310,0.30707343,651.31,649.75,1.17891387]
[1746972704510,0.30707343,651.31,649.75,1.46103888]
[1746972704813,0.30707343,651.31,649.76,0.28212501]
[1746972705210,0.30707343,651.31,649.77,1.46103888]
[1746972705611,0.30707343,651.31,649.78,1.46103888]
[1746972706012,0.30707343,651.31,649.79,0.28212501]
[1746972706206,0.30707343,651.31,649.79,1.46103888]
[1746972706408,0.30707343,651.31,649.8,1.46103888]
[1746972706812,0.30707343,651.31,649.81,0.28212501]
[1746972707005,0.30707343,651.31,649.82,1.17891387]
[1746972707208,0.30707343,651.31,649.82,1.46103888]
[1746972707512,0.30707343,651.31,649.83,1.46103888]
[1746972708012,0.30707343,651.31,649.84,0.28212501]
[1746972708211,0.30707343,651.31,649.84,1.46103888]
[1746972708415,0.30707343,651.31,649.85,0.28212501]
[1746972708613,0.30707343,651.31,649.86,1.17891387]
[1746972708814,0.30707343,651.31,649.86,1.46103888]
[1746972709014,0.30707343,651.31,649.87,1.46103888]
[1746972709409,0.30707343,651.31,649.88,0.28212501]
[1746972709613,0.30707343,651.31,649.89,1.17891387]
[1746972709813,0.30707343,651.31,649.89,1.46103888]
[1746972710113,0.30707343,651.31,649.9,0.28212501]
[1746972710414,0.30707343,651.31,649.91,0.28212501]
[1746972710608,0.30707343,651.31,649.91,1.46103888]
[1746972710913,0.30707343,651.31,649.92,1.46103888]
[1746972711112,0.30707343,651.31,649.93,0.28212501]
[1746972711309,0.30707343,651.31,649.94,1.17891387]
[1746972711814,0.30707343,651.31,649.95,0.28212501]
[1746972712216,0.30707343,651.31,649.96,1.17891387]
[1746972712412,0.30707343,651.31,649.96,1.46103888]
[1746972712818,0.30707343,651.31,649.97,1.46103888]
[1746972713018,0.30707343,651.31,649.98,0.28212501]
[1746972713319,0.30707343,651.31,649.99,1.17891387]
[1746972713518,0.30707343,651.31,649.99,1.46103888]
[1746972713818,0.30707343,651.31,650.0,0.28212501]
[1746972714019,0.30707343,651.31,650.01,1.17891387]
[1746972714220,0.30707343,651.31,650.01,1.46103888]
[1746972714720,0.30707343,651.31,650.02,1.46103888]
[1746972714920,0.30707343,651.31,650.03,0.28212501]
[1746972715417,0.30707343,651.31,650.04,1.46103888]
[1746972715921,0.30707343,651.31,650.05,0.28212501]
[1746972716215,0.30707343,651.31,650.06,0.28212501]
[1746972716521,0.30707343,651.31,650.07,1.17891387]
[1746972716921,0.30707343,651.31,650.08,0.28208784]
[1746972717218,0.30707343,651.31,650.09,0.28208784]
[1746972717521,0.30707343,651.31,650.1,0.28208784]
[1746972717722,0.30707343,651.31,650.1,1.46100171]
[1746972718021,0.30707343,651.31,650.11,0.28208784]
[1746972718223,0.30707343,651.31,650.11,1.46100171]
[1746972718423,0.30707343,651.31,650.12,0.28208784]
[1746972718616,0.30707343,651.31,650.13,1.46100171]
[1746972719017,0.30707343,651.31,650.14,0.28208784]
[1746972719218,0.30707343,651.31,650.15,0.28208784]
[1746972719823,0.30707343,651.31,650.16,1.17891387]
[1746972720024,0.30707343,651.31,649.2,1.17891387]
[1746972720323,0.30707343,651.31,649.21,1.17891387]
[1746972720723,0.30707343,651.31,649.21,2.09084484]
[1746972720919,0.30707343,651.31,649.22,1.17891387]
[1746972721125,0.30707343,651.31,649.22,2.35807258]
[1746972721325,0.30707343,651.31,649.23,1.17891387]
[1746972721525,0.30707343,651.31,649.24,0.91193097]
[1746972721726,0.30707343,651.31,649.25,1.17891387]
[1746972721927,0.30707343,651.31,649.26,1.17891387]
[1746972722322,0.30707343,651.31,649.27,0.91193097]
[1746972722525,0.30707343,651.31,649.28,1.17891387]
[1746972722821,0.30707343,651.31,649.28,2.09084484]
[1746972723026,0.30707343,651.31,649.29,0.91193097]
[1746972723227,0.30707343,651.31,649.3,1.17891387]
[1746972723427,0.30707343,651.31,649.3,2.09084484]
[1746972723621,0.30707343,651.31,649.31,2.09084484]
[1746972724025,0.30707343,651.31,649.32,0.91193097]
[1746972724427,0.30707343,651.31,649.33,2.09084484]
[1746972724926,0.30707343,651.31,649.34,1.17891387]
[1746972725130,0.30707343,651.31,649.35,1.17891387]
[1746972725428,0.30707343,651.31,649.36,2.09084484]
[1746972725626,0.30707343,651.31,649.37,0.91193097]
[1746972725931,0.30707343,651.31,649.38,2.09084484]
[1746972726332,0.30707343,651.31,649.39,1.17891387]
[1746972726533,0.30707343,651.31,649.39,2.09084484]
[1746972726832,0.30707343,651.31,649.4,2.09084484]
[1746972727026,0.30707343,651.31,649.41,0.91193097]
[1746972727231,0.30707343,651.31,649.42,1.17891387]
[1746972727430,0.30707343,651.31,649.42,2.09084484]
[1746972727832,0.30707343,651.31,649.43,1.17891387]
[1746972728027,0.30707343,651.31,649.43,2.09084484]
[1746972728226,0.30707343,651.31,649.44,2.09084484]
[1746972728531,0.30707343,651.31,649.45,2.09084484]
[1746972728828,0.30707343,651.31,649.46,0.91193097]
[1746972729132,0.30707343,651.31,649.47,1.80873179]
[1746972729334,0.30707343,651.31,649.47,2.09084484]
[1746972729532,0.30707343,651.31,649.48,2.09084484]
[1746972729829,0.30707343,651.31,649.49,0.91193097]
[1746972730228,0.30707343,651.31,649.5,1.17891387]
[1746972730426,0.30707343,651.31,649.5,2.09084484]
[1746972730628,0.30707343,651.31,649.51,1.17891387]
[1746972730828,0.30707343,651.31,649.51,2.09084484]
[1746972731029,0.30707343,651.31,649.52,2.09084484]
[1746972731432,0.30707343,651.31,649.53,0.91193097]
[1746972731634,0.30707343,651.31,649.54,1.17891387]
[1746972731834,0.30707343,651.31,649.54,2.09084484]
[1746972732027,0.30707343,651.31,649.55,2.09084484]
[1746972732535,0.30707343,651.31,649.56,0.91193097]
[1746972732728,0.30707343,651.31,649.57,1.17891387]
[1746972732932,0.30707343,651.31,649.57,2.09084484]
[1746972733131,0.30707343,651.31,649.58,0.91193097]
[1746972733334,0.30707343,651.31,649.58,2.09084484]
[1746972733536,0.30707343,651.31,649.59,0.91193097]
[1746972733836,0.30707343,651.31,649.6,2.09084484]
[1746972734335,0.30707343,651.31,649.61,2.09084484]
[1746972734533,0.30707343,651.31,649.61,1.46102692]
[1746972734737,0.30707343,651.31,649.62,2.09084484]
[1746972735039,0.30707343,651.31,649.63,0.91193097]
[1746972735438,0.30707343,651.31,649.64,1.17891387]
[1746972735737,0.30707343,651.31,649.65,1.17891387]
[1746972736038,0.30707343,651.31,649.66,1.17891387]
[1746972736539,0.30707343,651.31,649.66,2.09084484]
[1746972736741,0.30707343,651.31,649.67,1.17891387]
[1746972736942,0.30707343,651.31,649.67,2.09084484]
[1746972737240,0.30707343,651.31,649.68,1.80873179]
[1746972737536,0.30707343,651.31,649.68,2.09084484]
[1746972737734,0.30707343,651.31,649.69,2.09084484]
[1746972738041,0.30707343,651.31,649.7,0.91193097]
[1746972738238,0.30707343,651.31,649.7,2.09084484]
[1746972738438,0.30707343,651.31,649.71,0.28211305]
[1746972738642,0.30707343,651.31,649.72,0.28211305]
[1746972738941,0.30707343,651.31,649.71,1.17891387]
[1746972738942,0.30707343,651.31,649.73,0.28211305]
[1746972739237,0.30707343,651.31,649.74,1.17891387]
[1746972739443,0.30707343,651.31,649.74,1.46102692]
[1746972739636,0.30707343,651.31,649.75,0.28211305]
[1746972739937,0.30707343,651.31,649.76,1.46102692]
[1746972740341,0.30707343,651.31,649.77,1.46102692]
[1746972740541,0.30707343,651.31,649.78,0.28211305]
[1746972740742,0.30707343,651.31,649.79,1.17891387]
[1746972740943,0.30707343,651.31,649.79,1.46102692]
[1746972741144,0.30707343,651.31,649.8,1.17891387]
[1746972741443,0.30707343,651.31,649.81,0.28200455]
[1746972741739,0.30707343,651.31,649.82,1.46091842]
[1746972742241,0.30707343,651.31,649.83,1.46091842]
[1746972742439,0.30707343,651.31,649.84,0.28200455]
[1746972742745,0.30707343,651.31,649.85,1.46091842]
[1746972743144,0.30707343,651.31,649.86,0.28200455]
[1746972743345,0.30707343,651.31,649.86,1.46091842]
[1746972743540,0.30707343,651.31,649.87,0.28200455]
[1746972743744,0.30707343,651.31,649.88,1.17891387]
[1746972743946,0.30707343,651.31,649.88,1.46091842]
[1746972744146,0.30707343,651.31,649.89,0.28200455]
[1746972744546,0.30707343,651.31,649.9,1.46091842]
[1746972745046,0.30707343,651.31,649.91,1.46091842]
[1746972745246,0.30707343,651.31,649.92,1.17891387]
[1746972745548,0.30707343,651.31,649.92,1.46091842]
[1746972745846,0.30707343,651.31,649.93,1.46091842]
[1746972746047,0.30707343,651.31,649.94,1.17891387]
[1746972746345,0.30707343,651.31,649.95,1.17891387]
[1746972746546,0.30707343,651.31,649.95,1.46091842]
[1746972746743,0.30707343,651.31,649.96,1.17891387]
[1746972747041,0.30707343,651.31,649.97,0.28200455]
[1746972747246,0.30707343,651.31,649.98,1.17891387]
[1746972747546,0.30707343,651.31,649.99,1.17891387]
[1746972747743,0.30707343,651.31,650.0,0.28200455]
[1746972747949,0.30707343,651.31,650.01,1.17891387]
[1746972748148,0.30707343,651.31,650.01,1.46091842]
[1746972748349,0.30707343,651.31,650.02,1.17891387]
[1746972748550,0.30707343,651.31,650.02,1.46091842]
[1746972748848,0.30707343,651.31,650.03,1.46091842]
[1746972749049,0.30707343,651.31,650.04,0.28200455]
[1746972749551,0.30707343,651.31,650.05,1.46091842]
[1746972749952,0.30707343,651.31,650.06,1.17891387]
[1746972750152,0.30707343,651.31,650.06,1.46091842]
[1746972750454,0.30707343,651.31,650.07,0.28200455]
[1746972750653,0.30707343,651.31,650.08,1.17891387]
[1746972750950,0.30707343,651.31,650.09,1.17891387]
[1746972751254,0.30707343,651.31,650.1,0.28200455]
[1746972751555,0.30707343,651.31,650.11,1.46091842]
[1746972751854,0.30707343,651.31,650.12,0.28200455]
[1746972752155,0.30707343,651.31,650.13,1.17891387]
[1746972752356,0.30707343,651.31,650.13,1.46091842]
[1746972752555,0.30707343,651.31,650.14,1.46091842]
[1746972752751,0.30707343,651.31,650.15,0.28200455]
[1746972753056,0.30707343,651.31,650.16,1.17891387]
[1746972753252,0.30707343,651.31,650.16,1.46091842]
[1746972753458,0.30707343,651.31,650.17,0.28200455]
[1746972753656,0.30707343,651.31,650.18,1.17891387]
[1746972753856,0.30707343,651.31,650.18,1.46091842]
[1746972754255,0.30707343,651.31,650.19,0.28200455]
[1746972754457,0.30707343,651.31,650.19,1.46091842]
[1746972754752,0.30707343,651.31,650.2,0.28200455]
[1746972755156,0.30707343,651.31,650.21,1.46091842]
[1746972755357,0.30707343,651.31,650.22,1.17891387]
[1746972755558,0.30707343,651.31,650.22,1.46091842]
[1746972755758,0.30707343,651.31,650.23,0.28200455]
[1746972755958,0.30707343,651.31,650.24,1.17891387]
[1746972756159,0.30707343,651.31,650.24,1.46091842]
[1746972756359,0.30707343,651.31,650.25,1.17891387]
[1746972756562,0.30707343,651.31,650.25,1.46091842]
[1746972756858,0.30707343,651.31,650.26,1.45344975]
[1746972757254,0.30707343,651.31,650.27,1.45344975]
[1746972757459,0.30707343,651.31,650.28,1.1714452]
[1746972757653,0.30707343,651.31,650.28,1.45344975]
[1746972757855,0.30707343,651.31,650.29,1.45344975]
[1746972758154,0.30707343,651.31,650.3,0.28200455]
[1746972758358,0.30707343,651.31,650.31,1.1714452]
[1746972758559,0.30707343,651.31,650.31,1.45344975]
[1746972758959,0.30707343,651.31,650.32,1.45344975]
[1746972759159,0.30707343,651.31,650.33,1.45344975]
[1746972759658,0.30707343,651.31,650.34,1.45344975]
[1746972760056,0.30707343,651.31,650.35,1.1714452]
[1746972760360,0.30707343,651.31,650.35,1.45344975]
[1746972760659,0.30707343,651.31,650.36,0.91160384]
[1746972760960,0.30707343,651.31,650.37,1.1714452]
[1746972761158,0.30707343,651.31,650.37,2.08304904]
[1746972761356,0.30707343,651.31,650.38,1.1714452]
[1746972761556,0.30707343,651.31,650.38,2.08304904]
[1746972761760,0.30707343,651.31,650.39,1.1714452]
[1746972761960,0.30707343,651.31,650.39,1.45344975]
[1746972762261,0.30707343,651.31,650.4,1.45344975]
[1746972762663,0.30707343,651.31,650.41,0.28200455]
[1746972762856,0.30707343,651.31,650.41,1.45344975]
[1746972763059,0.30707343,651.31,650.42,0.28200455]
[1746972763262,0.30707343,651.31,650.43,1.1714452]
[1746972763462,0.30707343,651.31,650.43,1.45344975]
[1746972763663,0.30707343,651.31,650.44,1.45344975]
[1746972763965,0.30707343,651.31,650.45,0.28200455]
[1746972764261,0.30707343,651.31,650.46,0.28200455]
[1746972764857,0.30707343,651.31,650.47,1.45344975]
[1746972765362,0.30707343,651.31,650.48,1.45344975]
[1746972765756,0.30707343,651.31,650.49,0.28200455]
[1746972765957,0.30707343,651.31,650.5,1.45344975]
[1746972766263,0.30707343,651.31,650.51,1.1714452]
[1746972766468,0.30707343,651.31,650.52,1.1714452]
[1746972766660,0.30707343,651.31,650.53,0.28200455]
[1746972767063,0.30707343,651.31,650.54,1.1714452]
[1746972767263,0.30707343,651.31,650.55,1.1714452]
[1746972767464,0.30707343,651.31,650.56,0.28200455]
[1746972767662,0.30707343,651.31,650.55,1.1714452]
[1746972767663,0.30707343,651.31,650.57,0.28200455]
[1746972767863,0.30707343,651.31,650.58,1.1714452]
[1746972768065,0.30707343,651.31,650.58,1.45344975]